fUST/lending_fUST_20250802
["ID","MTS","AMOUNT","RATE_DAILY","PERIOD"]
[376743393,1754097041989,-160.0,0.00021083,2]
[376743395,1754097041999,-312.16666667,0.00021083,2]
[376743397,1754097042008,-160.0,0.00021083,2]
[376743399,1754097042018,-160.0,0.00021083,2]
[376743401,1754097042027,-160.0,0.00021083,2]
[376743403,1754097042036,-160.0,0.00021083,2]
[376743405,1754097042046,-160.0,0.00021083,2]
[376743407,1754097042055,-231.52694941,0.00021083,2]
[376743409,1754097042065,-216.22890603,0.00021083,2]
[376743411,1754097042075,-12644.26590849,0.00021083,2]
[376743413,1754097042085,-160.0,0.00021083,2]
[376743415,1754097042094,-460.76838597,0.00021083,2]
[376743417,1754097042103,-160.0,0.00021083,2]
[376743419,1754097042113,-215.03686253,0.00021083,2]
[376743421,1754097042121,-841.53699354,0.00021083,2]
[376743422,1754097042130,-249.34,0.00021142,3]
[376743424,1754097042140,-748.04,0.00021142,3]
[376743426,1754097042149,-2602.83,0.00021148,2]
[376743428,1754097042158,-1139.09,0.00021148,2]
[376743430,1754097042168,-562.85,0.00021149,2]
[376743432,1754097042177,-460.0,0.00021149,2]
[376743434,1754097042187,-460.0,0.00021149,2]
[376743436,1754097042196,-460.0,0.00021149,2]
[376743438,1754097042206,-634.61,0.0002115,2]
[376743440,1754097042216,-506.92,0.0002115,2]
[376743442,1754097042226,-460.0,0.0002115,2]
[376743444,1754097042236,-491.1,0.00021151,2]
[376743446,1754097042245,-703.52,0.00021151,2]
[376743448,1754097042258,-1974.69,0.00021151,2]
[376743450,1754097042269,-529.13,0.00021151,2]
[376743452,1754097042278,-460.0,0.00021151,2]
[376743454,1754097042288,-460.0,0.00021151,2]
[376743456,1754097042297,-510.21,0.00021151,2]
[376743458,1754097042306,-942.84,0.00021151,2]
[376743460,1754097042316,-460.0,0.00021152,2]
[376743462,1754097042326,-460.0,0.00021152,2]
[376743464,1754097042335,-460.0,0.00021152,2]
[376743466,1754097042344,-1068.73,0.00021152,2]
[376743468,1754097042353,-460.0,0.00021152,2]
[376743470,1754097042363,-623.02,0.00021152,2]
[376743472,1754097042372,-160.0,0.00021225,2]
[376743474,1754097042381,-1573.28936043,0.00021279,5]
[376743476,1754097042390,-151.0,0.000214,3]
[376743478,1754097042399,-879.1,0.00021416,3]
[376743480,1754097042409,-2602.83,0.00021422,2]
[376743482,1754097042418,-1139.09,0.00021422,2]
[376743484,1754097042427,-562.85,0.00021423,2]
[376743486,1754097042436,-460.0,0.00021423,2]
[376743488,1754097042446,-460.0,0.00021423,2]
[376743490,1754097042455,-460.0,0.00021423,2]
[376743492,1754097042464,-634.61,0.00021424,2]
[376743494,1754097042473,-506.92,0.00021424,2]
[376743496,1754097042482,-460.0,0.00021424,2]
[376743498,1754097042491,-491.1,0.00021425,2]
[376743500,1754097042502,-703.52,0.00021425,2]
[376743502,1754097042511,-1974.69,0.00021425,2]
[376743503,1754097042521,-529.13,0.00021425,2]
[376743505,1754097042530,-460.0,0.00021425,2]
[376743507,1754097042539,-460.0,0.00021425,2]
[376743509,1754097042548,-510.21,0.00021425,2]
[376743511,1754097042558,-942.84,0.00021425,2]
[376743513,1754097042568,-460.0,0.00021426,2]
[376743515,1754097042578,-460.0,0.00021426,2]
[376743517,1754097042586,-460.0,0.00021426,2]
[376743520,1754097042596,-1068.73,0.00021426,2]
[376743522,1754097042605,-460.0,0.00021426,2]
[376743524,1754097042615,-623.02,0.00021426,2]
[376743526,1754097042629,-1000.0,0.00021468,2]
[376743528,1754097042639,-659.35,0.00021531,3]
[376743530,1754097042649,-500.0,0.00021533,2]
[376743532,1754097042659,-200.0,0.0002154,15]
[376743534,1754097042668,-200.0,0.0002154,15]
[376743536,1754097042677,-200.0,0.0002154,15]
[376743538,1754097042686,-200.0,0.0002154,15]
[376743540,1754097042696,-320.0,0.0002154,15]
[376743542,1754097042709,-1573.28936043,0.00021555,5]
[376743544,1754097042726,-219.78,0.00021689,3]
[376743547,1754097042736,-439.55,0.0002169,3]
[376743549,1754097042745,-2602.83,0.00021696,2]
[376743551,1754097042755,-1139.09,0.00021696,2]
[376743554,1754097042764,-562.85,0.00021697,2]
[376743556,1754097042773,-460.0,0.00021697,2]
[376743558,1754097042782,-460.0,0.00021697,2]
[376743560,1754097042791,-460.0,0.00021697,2]
[376743562,1754097042801,-634.61,0.00021698,2]
[376743564,1754097042810,-506.92,0.00021698,2]
[376743566,1754097042820,-460.0,0.00021698,2]
[376743568,1754097042830,-491.1,0.00021699,2]
[376743570,1754097042838,-700.0,0.00021699,2]
[376743572,1754097042849,-703.52,0.00021699,2]
[376743574,1754097042858,-1974.69,0.00021699,2]
[376743576,1754097042867,-529.13,0.00021699,2]
[376743578,1754097042876,-460.0,0.00021699,2]
[376743580,1754097042885,-460.0,0.00021699,2]
[376743582,1754097042895,-510.21,0.00021699,2]
[376743584,1754097042905,-942.84,0.00021699,2]
[376743586,1754097042915,-460.0,0.000217,2]
[376743588,1754097042923,-460.0,0.000217,2]
[376743590,1754097042932,-1068.73,0.000217,2]
[376743592,1754097042942,-460.0,0.000217,2]
[376743594,1754097042951,-623.02,0.000217,2]
[376743596,1754097042960,-260.0,0.00021773,2]
[376743598,1754097042969,-1573.28936043,0.00021831,6]
[376743600,1754097042979,-694.16722552,0.000219,2]
[376743602,1754097042988,-1054.92,0.00021962,3]
[376743604,1754097042997,-2602.83,0.0002197,2]
[376743606,1754097043008,-1139.09,0.0002197,2]
[376743608,1754097043017,-562.85,0.00021971,2]
[376743610,1754097043026,-460.0,0.00021971,2]
[376743612,1754097043035,-460.0,0.00021971,2]
[376743614,1754097043044,-464.67539747,0.00021971,2]
[376743616,1754097043053,-634.61,0.00021972,2]
[376743618,1754097043062,-506.92,0.00021972,2]
[376743620,1754097043071,-460.0,0.00021972,2]
[376743622,1754097043081,-500.0,0.00021973,2]
[376743624,1754097043094,-500.0,0.00021973,2]
[376743626,1754097043103,-500.0,0.00021973,2]
[376743628,1754097043112,-500.0,0.00021973,2]
[376743630,1754097043121,-500.0,0.00021973,2]
[376743632,1754097043130,-491.1,0.00021973,2]
[376743633,1754097043139,-703.52,0.00021973,2]
[376743635,1754097043148,-1974.69,0.00021973,2]
[376743637,1754097043157,-529.13,0.00021973,2]
[376743639,1754097043166,-460.0,0.00021973,2]
[376743641,1754097043176,-460.0,0.00021973,2]
[376743643,1754097043185,-510.21,0.00021973,2]
[376743645,1754097043195,-942.84,0.00021973,2]
[376743647,1754097043204,-460.0,0.00021974,2]
[376743650,1754097043214,-447.60265066,0.00021974,2]
[376743652,1754097043223,-1068.73,0.00021974,2]
[376743653,1754097043233,-379.59,0.00021974,2]
[376743656,1754097043243,-623.02,0.00021974,2]
[376743658,1754097043253,-500.0,0.00021989,2]
[376743660,1754097043263,-285.75319563,0.00021989,2]
[376743662,1754097043273,-500.0,0.00021989,2]
[376743664,1754097043283,-500.0,0.00021989,2]
[376743666,1754097043292,-528.45271166,0.00021989,2]
[376743668,1754097043301,-500.0,0.00021989,2]
[376743670,1754097043311,-500.0,0.00021989,2]
[376743672,1754097043321,-500.0,0.00021989,2]
[376743674,1754097043330,-500.0,0.00021989,2]
[376743676,1754097043339,-500.0,0.00021989,2]
[376743677,1754097043348,-500.0,0.00021989,2]
[376743679,1754097043358,-500.0,0.00021989,2]
[376743681,1754097043367,-500.0,0.00021989,2]
[376743684,1754097043376,-500.0,0.00021989,2]
[376743686,1754097043386,-500.0,0.00021989,2]
[376743687,1754097043395,-500.0,0.00021989,2]
[376743689,1754097043404,-151.0,0.0002199,7]
[376743691,1754097043413,-151.0,0.0002199,7]
[376743693,1754097043423,-151.0,0.0002199,7]
[376743695,1754097043432,-151.0,0.0002199,7]
[376743697,1754097043442,-100000.0,0.0002199,2]
[376743699,1754097043451,-151.0,0.00022,7]
[376743701,1754097043461,-151.0,0.00022,7]
[376743703,1754097043471,-664.81,0.00022,7]
[376743705,1754097043481,-151.0,0.00022,7]
[376743707,1754097043490,-181.0,0.00022,2]
[376743709,1754097043501,-460.04,0.00022,2]
[376743711,1754097043510,-151.0,0.000221,6]
[376743713,1754097043520,-1573.28936043,0.00022107,6]
[376743715,1754097043530,-178.88093196,0.00022198,2]
[376743717,1754097043539,-812.779,0.00022198,2]
[376743719,1754097043548,-2602.83,0.00022244,2]
[376743721,1754097043557,-1139.09,0.00022244,2]
[376743723,1754097043567,-562.85,0.00022245,2]
[376743725,1754097043576,-513.90672193,0.00022245,2]
[376743727,1754097043586,-460.0,0.00022245,2]
[376743729,1754097043595,-634.61,0.00022246,2]
[376743731,1754097043604,-506.92,0.00022246,2]
[376743733,1754097043613,-460.0,0.00022246,2]
[376743735,1754097043622,-491.1,0.00022247,2]
[376743737,1754097043631,-703.52,0.00022247,2]
[376743739,1754097043640,-1974.69,0.00022247,2]
[376743741,1754097043650,-529.13,0.00022247,2]
[376743743,1754097043659,-460.0,0.00022247,2]
[376743745,1754097043668,-460.0,0.00022247,2]
[376743747,1754097043677,-510.21,0.00022247,2]
[376743749,1754097043686,-942.84,0.00022247,2]
[376743751,1754097043695,-460.0,0.00022248,2]
[376743753,1754097043705,-1068.73,0.00022248,2]
[376743755,1754097043714,-623.02,0.00022248,2]
[376743757,1754097043723,-1525.37,0.000223,7]
[376743759,1754097043732,-360.0,0.00022321,2]
[376743761,1754097043742,-1573.28936043,0.00022383,7]
[376743763,1754097043751,-3325.02687054,0.00022421,2]
[376743765,1754097043760,-500.0,0.00022509,2]
[376743767,1754097043769,-498.68,0.00022512,3]
[376743769,1754097043778,-2602.83,0.00022518,2]
[376743771,1754097043788,-1139.09,0.00022518,2]
[376743773,1754097043797,-562.85,0.00022519,2]
[376743775,1754097043806,-460.0,0.00022519,2]
[376743777,1754097043816,-12644.26590849,0.0002252,3]
[376743779,1754097043826,-460.76838597,0.0002252,3]
[376743781,1754097043835,-634.61,0.0002252,2]
[376743783,1754097043844,-312.16666667,0.0002252,3]
[376743785,1754097043854,-506.92,0.0002252,2]
[376743787,1754097043865,-1000.0,0.00022521,2]
[376743789,1754097043874,-504.16364285,0.00022521,2]
[376743791,1754097043883,-233.16621669,0.00022521,2]
[376743793,1754097043893,-1000.0,0.00022521,2]
[376743795,1754097043902,-1000.0,0.00022521,2]
[376743797,1754097043911,-491.1,0.00022521,2]
[376743799,1754097043920,-703.52,0.00022521,2]
[376743801,1754097043930,-1974.69,0.00022521,2]
[376743803,1754097043939,-529.13,0.00022521,2]
[376743805,1754097043948,-481.47,0.00022521,2]
[376743807,1754097043957,-460.0,0.00022521,2]
[376743809,1754097043966,-510.21,0.00022521,2]
[376743811,1754097043976,-942.84,0.00022521,2]
[376743813,1754097043985,-478.16,0.00022522,2]
[376743815,1754097043994,-1068.73,0.00022522,2]
[376743817,1754097044003,-623.02,0.00022522,2]
[376743819,1754097044013,-500.0,0.00022573,2]
[376743821,1754097044022,-6119.56,0.000226,7]
[376743823,1754097044030,-12644.26590849,0.000226,7]
[376743825,1754097044039,-460.76838597,0.000226,7]
[376743826,1754097044049,-312.16666667,0.000226,7]
[376743828,1754097044058,-460.04,0.00022634,2]
[376743830,1754097044068,-500.0,0.00022654,2]
[376743832,1754097044077,-500.0,0.00022654,2]
[376743834,1754097044089,-1573.28936043,0.00022659,7]
[376743836,1754097044098,-1758.2,0.00022786,3]
[376743838,1754097044108,-150.0,0.00022791,2]
[376743840,1754097044117,-2602.83,0.00022792,2]
[376743842,1754097044127,-1139.09,0.00022792,2]
[376743844,1754097044136,-562.85,0.00022793,2]
[376743846,1754097044145,-308.69880764,0.00022793,2]
[376743848,1754097044154,-634.61,0.00022794,2]
[376743850,1754097044168,-506.92,0.00022794,2]
[376743852,1754097044177,-700.0,0.00022795,2]
[376743854,1754097044186,-491.1,0.00022795,2]
[376743856,1754097044195,-703.52,0.00022795,2]
[376743858,1754097044204,-1974.69,0.00022795,2]
[376743860,1754097044213,-529.13,0.00022795,2]
[376743862,1754097044223,-460.0,0.00022795,2]
[376743864,1754097044232,-510.21,0.00022795,2]
[376743866,1754097044241,-942.84,0.00022795,2]
[376743868,1754097044250,-1068.73,0.00022796,2]
[376743870,1754097044259,-623.02,0.00022796,2]
[376743872,1754097044268,-151.0,0.000228,8]
[376743874,1754097044278,-694.16722551,0.00022827,2]
[376743876,1754097044287,-587.0,0.00022839,2]
[376743878,1754097044296,-420.0,0.00022869,2]
[376743880,1754097044306,-1573.28936043,0.00022934,8]
[376743882,1754097044316,-216.22890603,0.00023,3]
[376743884,1754097044325,-160.0,0.00023,2]
[376743886,1754097044334,-160.0,0.00023,3]
[376743888,1754097044342,-841.53699354,0.00023,3]
[376743890,1754097044351,-1000.0,0.00023057,2]
[376743892,1754097044360,-439.56,0.00023059,3]
[376743894,1754097044370,-879.1,0.0002306,3]
[376743896,1754097044378,-2602.83,0.00023066,2]
[376743898,1754097044387,-1139.09,0.00023066,2]
[376743900,1754097044396,-562.85,0.00023067,2]
[376743902,1754097044404,-634.61,0.00023068,2]
[376743904,1754097044413,-506.92,0.00023068,2]
[376743906,1754097044422,-1018.72061119,0.00023068,2]
[376743908,1754097044431,-500.0,0.00023068,2]
[376743910,1754097044440,-517.79606695,0.00023068,2]
[376743912,1754097044449,-491.1,0.00023069,2]
[376743914,1754097044458,-703.52,0.00023069,2]
[376743916,1754097044467,-1974.69,0.00023069,2]
[376743918,1754097044476,-529.13,0.00023069,2]
[376743920,1754097044485,-460.0,0.00023069,2]
[376743922,1754097044494,-510.21,0.00023069,2]
[376743924,1754097044503,-942.84,0.00023069,2]
[376743926,1754097044512,-1068.73,0.0002307,2]
[376743928,1754097044521,-623.02,0.0002307,2]
[376743930,1754097044531,-168.79,0.00023087,2]
[376743932,1754097044540,-1838.0,0.00023092,5]
[376743934,1754097044549,-14121.23,0.000231,2]
[376743936,1754097044558,-1000.0,0.00023202,2]
[376743938,1754097044569,-1573.28936043,0.0002321,8]
[376743940,1754097044578,-275.06325816,0.0002323,2]
[376743942,1754097044587,-500.0,0.0002323,2]
[376743944,1754097044597,-211.0,0.00023239,2]
[376743946,1754097044606,-460.04,0.00023268,2]
[376743948,1754097044616,-2602.83,0.0002334,2]
[376743950,1754097044625,-1139.09,0.0002334,2]
[376743952,1754097044634,-562.85,0.00023341,2]
[376743954,1754097044643,-634.61,0.00023342,2]
[376743956,1754097044747,-506.92,0.00023342,2]
[376743957,1754097044756,-500.0,0.00023343,2]
[376743958,1754097044765,-491.1,0.00023343,2]
[376743959,1754097044776,-703.52,0.00023343,2]
[376743960,1754097044785,-1974.69,0.00023343,2]
[376743961,1754097044794,-529.13,0.00023343,2]
[376743962,1754097044803,-460.0,0.00023343,2]
[376743963,1754097044812,-510.21,0.00023343,2]
[376743964,1754097044821,-942.84,0.00023343,2]
[376743965,1754097044831,-1068.73,0.00023344,2]
[376743966,1754097044840,-623.02,0.00023344,2]
[376743967,1754097044849,-500.0,0.00023345,2]
[376743968,1754097044858,-151.0,0.00023345,2]
[376743969,1754097044867,-181.23702289,0.00023345,2]
[376743970,1754097044876,-151.0,0.00023345,2]
[376743971,1754097044886,-151.0,0.00023345,2]
[376743972,1754097044895,-152.70394576,0.00023345,2]
[376743974,1754097044905,-151.30450914,0.00023345,2]
[376743976,1754097044915,-266.51370992,0.00023345,2]
[376743978,1754097044924,-151.0,0.00023345,2]
[376743980,1754097044933,-151.0,0.00023345,2]
[376743981,1754097044943,-151.0,0.00023345,2]
[376743983,1754097044953,-151.0,0.00023345,2]
[376743985,1754097044962,-151.0,0.00023345,2]
[376743987,1754097044971,-151.0,0.00023345,2]
[376743989,1754097044980,-151.0,0.00023345,2]
[376743991,1754097044989,-151.0,0.00023345,2]
[376743993,1754097044999,-151.0,0.00023345,2]
[376743995,1754097045008,-151.0,0.00023345,2]
[376743997,1754097045017,-151.0,0.00023345,2]
[376743999,1754097045027,-151.0,0.00023345,2]
[376744001,1754097045037,-151.0,0.00023345,2]
[376744003,1754097045051,-211.12151948,0.00023345,2]
[376744005,1754097045067,-151.0,0.00023345,2]
[376744007,1754097045077,-151.503774,0.00023398,6]
[376744009,1754097045089,-151.0,0.000234,7]
[376744011,1754097045099,-151.0,0.000234,7]
[376744013,1754097045108,-151.0,0.000234,7]
[376744015,1754097045117,-151.000001,0.000234,7]
[376744017,1754097045125,-151.0,0.000234,7]
[376744019,1754097045136,-151.0,0.000234,7]
[376744021,1754097045145,-151.0,0.000234,7]
[376744023,1754097045154,-151.0,0.000234,7]
[376744025,1754097045163,-1838.0,0.00023463,5]
[376744027,1754097045172,-1573.28936043,0.00023486,9]
[376744029,1754097045182,-151.0,0.000235,5]
[376744031,1754097045191,-151.0,0.000235,6]
[376744033,1754097045201,-2602.83,0.00023614,2]
[376744035,1754097045210,-1139.09,0.00023614,2]
[376744037,1754097045220,-562.85,0.00023615,2]
[376744039,1754097045230,-634.61,0.00023616,2]
[376744041,1754097045239,-506.92,0.00023616,2]
[376744042,1754097045249,-500.0,0.00023617,2]
[376744044,1754097045259,-491.1,0.00023617,2]
[376744046,1754097045268,-703.52,0.00023617,2]
[376744048,1754097045279,-1974.69,0.00023617,2]
[376744049,1754097045288,-529.13,0.00023617,2]
[376744051,1754097045297,-460.0,0.00023617,2]
[376744053,1754097045306,-510.21,0.00023617,2]
[376744055,1754097045316,-942.84,0.00023617,2]
[376744057,1754097045326,-1068.73,0.00023618,2]
[376744059,1754097045336,-623.02,0.00023618,2]
[376744061,1754097045346,-500.0,0.00023619,2]
[376744063,1754097045355,-151.0,0.00023619,2]
[376744065,1754097045364,-151.0,0.00023619,2]
[376744067,1754097045377,-151.0,0.00023619,2]
[376744069,1754097045386,-151.0,0.00023619,2]
[376744071,1754097045396,-151.0,0.00023619,2]
[376744073,1754097045406,-151.0,0.00023619,2]
[376744075,1754097045423,-151.0,0.00023619,2]
[376744077,1754097045435,-151.0,0.00023619,2]
[376744079,1754097045446,-151.0,0.00023619,2]
[376744081,1754097045455,-151.31981386,0.00023619,2]
[376744083,1754097045465,-151.0,0.00023619,2]
[376744085,1754097045475,-151.0,0.00023619,2]
[376744087,1754097045484,-151.0,0.00023619,2]
[376744088,1754097045494,-200.0,0.00023652,15]
[376744090,1754097045504,-200.0,0.00023652,15]
[376744092,1754097045514,-200.0,0.00023652,15]
[376744094,1754097045523,-200.0,0.00023652,15]
[376744096,1754097045532,-200.0,0.00023652,15]
[376744098,1754097045543,-200.0,0.00023652,15]
[376744100,1754097045552,-366.0,0.00023652,15]
[376744102,1754097045561,-694.16722551,0.00023754,2]
[376744104,1754097045571,-1573.28936043,0.00023762,9]
[376744106,1754097045581,-1000.0,0.00023778,2]
[376744108,1754097045590,-664.81,0.000238,7]
[376744110,1754097045599,-1838.0,0.00023835,5]
[376744112,1754097045609,-2602.83,0.00023888,2]
[376744114,1754097045618,-1139.09,0.00023888,2]
[376744116,1754097045627,-562.85,0.00023889,2]
[376744119,1754097045636,-634.61,0.0002389,2]
[376744122,1754097045645,-506.92,0.0002389,2]
[376744125,1754097045654,-500.0,0.00023891,2]
[376744127,1754097045663,-700.0,0.00023891,2]
[376744130,1754097045672,-491.1,0.00023891,2]
[376744133,1754097045682,-703.52,0.00023891,2]
[376744135,1754097045691,-1974.69,0.00023891,2]
[376744138,1754097045700,-529.13,0.00023891,2]
[376744141,1754097045709,-460.0,0.00023891,2]
[376744144,1754097045718,-510.21,0.00023891,2]
[376744146,1754097045727,-942.84,0.00023891,2]
[376744148,1754097045736,-1068.73,0.00023892,2]
[376744150,1754097045745,-623.02,0.00023892,2]
[376744152,1754097045754,-500.0,0.00023893,2]
[376744154,1754097045763,-151.0,0.00023893,2]
[376744155,1754097045772,-168.79,0.00023976,2]
[376744157,1754097045781,-1525.37,0.00024,7]
[376744159,1754097045791,-160.0,0.00024,7]
[376744161,1754097045800,-841.53699354,0.00024,7]
[376744163,1754097045809,-151.0,0.00024,7]
[376744165,1754097045819,-460.04,0.00024,2]
[376744167,1754097045828,-1573.28936043,0.00024038,10]
[376744169,1754097045837,-462.13637724,0.00024047,2]
[376744171,1754097045847,-6119.56,0.000241,7]
[376744173,1754097045857,-2146.0,0.00024125,2]
[376744175,1754097045866,-635.0,0.00024125,2]
[376744177,1754097045875,-970.0,0.00024125,2]
[376744179,1754097045884,-2602.83,0.00024162,2]
[376744181,1754097045894,-1139.09,0.00024162,2]
[376744183,1754097045903,-562.85,0.00024163,2]
[376744185,1754097045912,-634.61,0.00024164,2]
[376744187,1754097045921,-506.92,0.00024164,2]
[376744189,1754097045930,-500.0,0.00024165,2]
[376744191,1754097045940,-491.1,0.00024165,2]
[376744193,1754097045950,-703.52,0.00024165,2]
[376744195,1754097045960,-1974.69,0.00024165,2]
[376744197,1754097045969,-529.13,0.00024165,2]
[376744199,1754097045979,-460.0,0.00024165,2]
[376744201,1754097045989,-510.21,0.00024165,2]
[376744203,1754097045998,-942.84,0.00024165,2]
[376744205,1754097046007,-1068.73,0.00024166,2]
[376744207,1754097046017,-623.02,0.00024166,2]
[376744209,1754097046026,-500.0,0.00024167,2]
[376744211,1754097046035,-198.0,0.00024167,2]
[376744213,1754097046045,-860.129806,0.00024192,2]
[376744215,1754097046054,-151.0,0.000242,9]
[376744217,1754097046064,-1838.0,0.00024206,5]
[376744219,1754097046074,-153.0,0.00024312,2]
[376744221,1754097046083,-153.0,0.00024312,2]
[376744223,1754097046100,-153.0,0.00024312,2]
[376744225,1754097046110,-153.0,0.00024312,2]
[376744227,1754097046119,-153.0,0.00024312,2]
[376744229,1754097046128,-153.0,0.00024312,2]
[376744231,1754097046137,-1573.28936043,0.00024314,10]
[376744233,1754097046147,-155.88,0.00024325,7]
[376744235,1754097046156,-155.88,0.00024325,7]
[376744237,1754097046165,-1003.65022164,0.00024326,2]
[376744239,1754097046174,-577.7169891,0.00024338,2]
[376744241,1754097046183,-155.39,0.00024339,7]
[376744243,1754097046192,-153.0,0.00024351,2]
[376744245,1754097046202,-578.4830312,0.00024351,2]
[376744247,1754097046211,-578.4830312,0.00024351,2]
[376744249,1754097046220,-153.0,0.00024351,2]
[376744251,1754097046230,-578.4830312,0.00024351,2]
[376744253,1754097046239,-153.0,0.00024351,2]
[376744255,1754097046248,-538.03,0.00024383,10]
[376744257,1754097046257,-538.03,0.00024383,10]
[376744259,1754097046267,-538.03,0.00024383,10]
[376744261,1754097046275,-538.03,0.00024383,10]
[376744263,1754097046284,-538.03,0.00024383,10]
[376744265,1754097046294,-538.03,0.00024383,10]
[376744267,1754097046303,-538.03,0.00024383,10]
[376744269,1754097046312,-538.03,0.00024383,10]
[376744270,1754097046321,-538.03,0.00024383,10]
[376744272,1754097046330,-538.03,0.00024383,10]
[376744274,1754097046338,-538.03,0.00024383,10]
[376744276,1754097046348,-538.03,0.00024383,10]
[376744278,1754097046360,-538.03,0.00024383,10]
[376744280,1754097046369,-538.03,0.00024383,10]
[376744282,1754097046379,-538.03,0.00024383,10]
[376744284,1754097046388,-312.16666667,0.000244,10]
[376744286,1754097046397,-170.13013717,0.000244,10]
[376744289,1754097046418,-671.40685637,0.000244,10]
[376744291,1754097046427,-151.0,0.000244,6]
[376744293,1754097046436,-155.88,0.00024425,7]
[376744295,1754097046445,-33.77101723,0.00024425,7]
[376744297,1754097046457,-122.10898277,0.00024425,7]
[376744299,1754097046466,-736.4096862,0.00024436,2]
[376744302,1754097046478,-1866.4203138,0.00024436,2]
[376744304,1754097046487,-1139.09,0.00024436,2]
[376744306,1754097046497,-562.85,0.00024437,2]
[376744308,1754097046508,-634.61,0.00024438,2]
[376744309,1754097046517,-506.92,0.00024438,2]
[376744312,1754097046527,-500.0,0.00024439,2]
[376744314,1754097046536,-491.1,0.00024439,2]
[376744316,1754097046546,-703.52,0.00024439,2]
[376744317,1754097046555,-1974.69,0.00024439,2]
[376744320,1754097046567,-529.13,0.00024439,2]
[376744321,1754097046576,-460.0,0.00024439,2]
[376744323,1754097046586,-510.21,0.00024439,2]
[376744325,1754097046595,-942.84,0.00024439,2]
[376744327,1754097046603,-155.39,0.00024439,7]
[376744329,1754097046613,-1068.73,0.0002444,2]
[376744331,1754097046622,-623.02,0.0002444,2]
[376744333,1754097046630,-500.0,0.00024441,2]
[376744335,1754097046639,-14121.23,0.000245,2]
[376744337,1754097046648,-460.04,0.00024535,2]
[376744339,1754097046658,-155.39,0.00024539,7]
[376744341,1754097046667,-538.03,0.00024577,10]
[376744343,1754097046676,-1838.0,0.00024578,6]
[376744345,1754097046685,-603.82799262,0.0002459,11]
[376744347,1754097046696,-969.46136781,0.0002459,11]
[376744349,1754097046705,-152.651226,0.00024596,7]
[376744351,1754097046715,-151.0,0.00024596,7]
[376744353,1754097046724,-151.0,0.00024596,7]
[376744355,1754097046735,-1003.148209,0.000246,2]
[376744357,1754097046744,-153.0,0.00024603,2]
[376744359,1754097046753,-73.77500703,0.00024603,2]
[376744362,1754097046764,-79.22499297,0.00024603,2]
[376744364,1754097046773,-153.0,0.00024603,2]
[376744366,1754097046782,-153.0,0.0002463,2]
[376744368,1754097046791,-153.0,0.0002463,2]
[376744370,1754097046800,-153.0,0.0002463,2]
[376744372,1754097046809,-155.39,0.00024639,7]
[376744374,1754097046819,-401.47168761,0.00024657,2]
[376744376,1754097046831,-98.52831239,0.00024657,2]
[376744378,1754097046840,-150.0,0.00024674,2]